lending/lending_fUSD_20240401
["ID","MTS","AMOUNT","RATE_DAILY","PERIOD"]
[321178995,1711945848783,-751.878365,0.00056047,120]
[321178996,1711945848794,-151.0,0.00056047,120]
[321178997,1711945848804,-200.424925,0.00056123,120]
[321178998,1711945848813,-200.424925,0.00056123,120]
[321178999,1711945848822,-151.0,0.00056123,60]
[321179000,1711945848831,-274.065629,0.00056123,120]
[321179001,1711945848841,-274.065629,0.00056123,120]
[321179002,1711945848850,-151.0,0.00056123,120]
[321179003,1711945848859,-151.0,0.00056123,120]
[321179004,1711945848869,-290.42596992,0.00056154,7]
[321179005,1711945848878,-786.23247038,0.00056161,4]
[321179006,1711945848888,-4019.73354156,0.00056161,2]
[321179007,1711945848897,-626.3049655,0.00056162,4]
[321179008,1711945848906,-500.0,0.00056164,120]
[321179009,1711945848916,-500.0,0.00056164,120]
[321179010,1711945848925,-232.116101,0.00056164,30]
[321179011,1711945848933,-232.116101,0.00056164,30]
[321179012,1711945848943,-500.0,0.00056164,120]
[321179013,1711945848952,-648.17,0.00056164,120]
[321179014,1711945848961,-500.0,0.00056164,120]
[321179015,1711945848970,-1428.09,0.00056164,120]
[321179016,1711945848979,-500.0,0.00056164,120]
[321179017,1711945848988,-652.92,0.00056164,120]
[321179018,1711945848997,-1261.26,0.00056164,120]
[321179019,1711945849006,-817.88,0.00056164,120]
[321179020,1711945849016,-500.0,0.00056164,120]
[321179021,1711945849025,-524.15,0.00056164,120]
[321179022,1711945849034,-471.5234261,0.00056164,120]
[321179023,1711945849043,-500.0,0.00056164,120]
[321179024,1711945849051,-3434.35,0.00056164,120]
[321179025,1711945849061,-711.59,0.00056164,120]
[321179026,1711945849070,-887.67,0.00056164,120]
[321179027,1711945849085,-707.38,0.00056164,120]
[321179028,1711945849142,-500.0,0.00056164,120]
[321179029,1711945849151,-500.0,0.00056164,120]
[321179030,1711945849160,-3065.46,0.00056164,120]
[321179031,1711945849170,-936.2,0.00056164,120]
[321179032,1711945849179,-500.0,0.00056164,120]
[321179033,1711945849188,-500.0,0.00056164,120]
[321179034,1711945849197,-1076.96,0.00056164,120]
[321179035,1711945849206,-752.98,0.00056164,120]
[321179036,1711945849215,-500.0,0.00056164,120]
[321179037,1711945849230,-500.0,0.00056164,120]
[321179038,1711945849242,-2327.12,0.00056164,120]
[321179039,1711945849254,-500.0,0.00056164,120]
[321179040,1711945849266,-1379.9,0.00056164,120]
[321179041,1711945849279,-500.0,0.00056164,120]
[321179042,1711945849290,-500.0,0.00056164,120]
[321179043,1711945849301,-496.22016839,0.00056164,120]
[321179044,1711945849311,-929.99,0.00056164,120]
[321179045,1711945849323,-2759.74,0.00056164,120]
[321179046,1711945849334,-2284.65,0.00056164,120]
[321179047,1711945849345,-787.3,0.00056164,21]
[321179048,1711945849356,-690.79,0.00056164,120]
[321179049,1711945849368,-500.0,0.00056164,120]
[321179050,1711945849379,-840.47,0.00056164,120]
[321179051,1711945849391,-702.95,0.00056164,120]
[321179052,1711945849402,-589.3031561,0.00056164,120]
[321179053,1711945849414,-624.41,0.00056164,120]
[321179054,1711945849425,-500.0,0.00056164,120]
[321179055,1711945849435,-1226.31,0.00056164,120]
[321179056,1711945849445,-500.0,0.00056164,120]
[321179057,1711945849457,-1575.71,0.00056164,120]
[321179058,1711945849468,-2216.82,0.00056164,120]
[321179059,1711945849479,-500.0,0.00056164,120]
[321179060,1711945849491,-500.0,0.00056164,120]
[321179061,1711945849502,-500.0,0.00056164,120]
[321179062,1711945849513,-500.0,0.00056164,120]
[321179063,1711945849524,-500.0,0.00056164,120]
[321179064,1711945849535,-580.43,0.00056164,120]
[321179065,1711945849547,-500.0,0.00056164,120]
[321179066,1711945849558,-1203.99,0.00056164,120]
[321179067,1711945849569,-500.0,0.00056164,120]
[321179068,1711945849578,-500.0,0.00056164,120]
[321179069,1711945849589,-655.27,0.00056164,120]
[321179070,1711945849601,-153.84861958,0.00056213,2]
[321179071,1711945849613,-2607.05553119,0.00056338,34]
[321179072,1711945849624,-186.59827859,0.00056338,2]
[321179073,1711945849634,-500.0,0.00056438,120]
[321179074,1711945849647,-500.0,0.00056438,120]
[321179075,1711945849658,-200.424925,0.00056438,120]
[321179076,1711945849670,-200.424925,0.00056438,120]
[321179077,1711945849681,-500.0,0.00056438,120]
[321179078,1711945849693,-648.17,0.00056438,120]
[321179079,1711945849702,-500.0,0.00056438,120]
[321179080,1711945849716,-1428.09,0.00056438,120]
[321179081,1711945849727,-500.0,0.00056438,120]
[321179082,1711945849738,-652.92,0.00056438,120]
[321179083,1711945849753,-1261.26,0.00056438,120]
[321179084,1711945849765,-817.88,0.00056438,120]
[321179085,1711945849777,-500.0,0.00056438,120]
[321179086,1711945849790,-524.15,0.00056438,120]
[321179087,1711945849803,-500.0,0.00056438,120]
[321179088,1711945849815,-3434.35,0.00056438,120]
[321179089,1711945849826,-711.59,0.00056438,120]
[321179090,1711945849838,-887.67,0.00056438,120]
[321179091,1711945849849,-707.38,0.00056438,120]
[321179092,1711945849859,-151.0,0.00056438,60]
[321179093,1711945849869,-500.0,0.00056438,120]
[321179094,1711945849879,-293.23889752,0.00056438,120]
[321179095,1711945849889,-3065.46,0.00056438,120]
[321179096,1711945849899,-936.2,0.00056438,120]
[321179097,1711945849909,-500.0,0.00056438,120]
[321179098,1711945849920,-274.065629,0.00056438,120]
[321179099,1711945849931,-500.0,0.00056438,120]
[321179100,1711945849942,-274.065629,0.00056438,120]
[321179101,1711945849953,-1076.96,0.00056438,120]
[321179102,1711945849964,-752.98,0.00056438,120]
[321179103,1711945849975,-500.0,0.00056438,120]
[321179104,1711945849986,-500.0,0.00056438,120]
[321179105,1711945849996,-2327.12,0.00056438,120]
[321179106,1711945850008,-500.0,0.00056438,120]
[321179107,1711945850018,-1379.9,0.00056438,120]
[321179108,1711945850028,-500.0,0.00056438,120]
[321179109,1711945850038,-500.0,0.00056438,120]
[321179110,1711945850049,-929.99,0.00056438,120]
[321179111,1711945850058,-2759.74,0.00056438,120]
[321179112,1711945850069,-2284.65,0.00056438,120]
[321179113,1711945850079,-787.3,0.00056438,21]
[321179114,1711945850090,-690.79,0.00056438,120]
[321179115,1711945850100,-500.0,0.00056438,120]
[321179116,1711945850111,-840.47,0.00056438,120]
[321179117,1711945850121,-702.95,0.00056438,120]
[321179118,1711945850132,-624.41,0.00056438,120]
[321179119,1711945850142,-201.92,0.00056438,120]
[321179120,1711945850153,-1226.31,0.00056438,120]
[321179121,1711945850164,-500.0,0.00056438,120]
[321179122,1711945850174,-152.973751,0.00056438,120]
[321179123,1711945850185,-1575.71,0.00056438,120]
[321179124,1711945850196,-2216.82,0.00056438,120]
[321179125,1711945850206,-500.0,0.00056438,120]
[321179126,1711945850217,-500.0,0.00056438,120]
[321179127,1711945850229,-500.0,0.00056438,120]
[321179128,1711945850240,-151.0,0.00056438,120]
[321179129,1711945850251,-500.0,0.00056438,120]
[321179130,1711945850262,-500.0,0.00056438,120]
[321179131,1711945850273,-580.43,0.00056438,120]
[321179132,1711945850284,-500.0,0.00056438,120]
[321179133,1711945850295,-1203.99,0.00056438,120]
[321179134,1711945850308,-500.0,0.00056438,120]
[321179135,1711945850319,-500.0,0.00056438,120]
[321179136,1711945850330,-751.878365,0.00056438,120]
[321179137,1711945850340,-655.27,0.00056438,120]
[321179138,1711945850352,-751.878365,0.00056438,120]
[321179139,1711945850362,-151.0,0.00056438,120]
[321179140,1711945850373,-170.7,0.00056438,2]
[321179141,1711945850384,-152.0,0.00056704,3]
[321179142,1711945850395,-500.0,0.00056712,120]
[321179143,1711945850405,-500.0,0.00056712,120]
[321179144,1711945850416,-232.116101,0.00056712,30]
[321179145,1711945850426,-232.116101,0.00056712,30]
[321179146,1711945850437,-500.0,0.00056712,120]
[321179147,1711945850447,-648.17,0.00056712,120]
[321179148,1711945850457,-500.0,0.00056712,120]
[321179149,1711945850469,-1428.09,0.00056712,120]
[321179150,1711945850479,-500.0,0.00056712,120]
[321179151,1711945850490,-652.92,0.00056712,120]
[321179152,1711945850500,-1261.26,0.00056712,120]
[321179153,1711945850510,-817.88,0.00056712,120]
[321179154,1711945850521,-500.0,0.00056712,120]
[321179155,1711945850531,-524.15,0.00056712,120]
[321179156,1711945850542,-500.0,0.00056712,120]
[321179157,1711945850552,-3434.35,0.00056712,120]
[321179158,1711945850562,-711.59,0.00056712,120]
[321179159,1711945850573,-887.67,0.00056712,120]
[321179160,1711945850583,-707.38,0.00056712,120]
[321179161,1711945850594,-500.0,0.00056712,120]
[321179162,1711945850604,-936.2,0.00056712,120]
[321179163,1711945850614,-3065.46,0.00056712,120]
[321179164,1711945850624,-500.0,0.00056712,120]
[321179165,1711945850635,-500.0,0.00056712,120]
[321179166,1711945850645,-1076.96,0.00056712,120]
[321179167,1711945850656,-752.98,0.00056712,120]
[321179168,1711945850666,-500.0,0.00056712,120]
[321179169,1711945850677,-500.0,0.00056712,120]
[321179170,1711945850688,-2327.12,0.00056712,120]
[321179171,1711945850699,-500.0,0.00056712,120]
[321179172,1711945850711,-1379.9,0.00056712,120]
[321179173,1711945850722,-500.0,0.00056712,120]
[321179174,1711945850733,-500.0,0.00056712,120]
[321179175,1711945850744,-929.99,0.00056712,120]
[321179176,1711945850756,-2759.74,0.00056712,120]
[321179177,1711945850766,-2284.65,0.00056712,120]
[321179178,1711945850778,-787.3,0.00056712,21]
[321179179,1711945850790,-690.79,0.00056712,120]
[321179180,1711945850802,-500.0,0.00056712,120]
[321179181,1711945850813,-840.47,0.00056712,120]
[321179182,1711945850825,-702.95,0.00056712,120]
[321179183,1711945850836,-624.41,0.00056712,120]
[321179184,1711945850847,-1226.31,0.00056712,120]
[321179185,1711945850858,-500.0,0.00056712,120]
[321179186,1711945850870,-1575.71,0.00056712,120]
[321179187,1711945850881,-2216.82,0.00056712,120]
[321179188,1711945850893,-500.0,0.00056712,120]
[321179189,1711945850905,-500.0,0.00056712,120]
[321179190,1711945850917,-500.0,0.00056712,120]
[321179191,1711945850929,-500.0,0.00056712,120]
[321179192,1711945850941,-500.0,0.00056712,120]
[321179193,1711945850953,-580.43,0.00056712,120]
[321179194,1711945850965,-500.0,0.00056712,120]
[321179195,1711945850976,-1203.99,0.00056712,120]
[321179196,1711945850987,-500.0,0.00056712,120]
[321179197,1711945851165,-500.0,0.00056712,120]
[321179198,1711945851186,-751.878365,0.00056712,120]
[321179199,1711945851199,-655.27,0.00056712,120]
[321179200,1711945851210,-751.878365,0.00056712,120]
[321179201,1711945851221,-151.0,0.00056712,120]
[321179202,1711945851231,-155.92940477,0.00056723,4]
[321179203,1711945851240,-301.99607546,0.00056798,7]
[321179204,1711945851251,-268.0,0.0005683,81]
[321179205,1711945851262,-500.0,0.00056986,120]
[321179206,1711945851272,-500.0,0.00056986,120]
[321179207,1711945851281,-200.424925,0.00056986,120]
[321179208,1711945851291,-200.424925,0.00056986,120]
[321179209,1711945851302,-500.0,0.00056986,120]
[321179210,1711945851312,-648.17,0.00056986,120]
[321179211,1711945851322,-500.0,0.00056986,120]
[321179212,1711945851332,-1428.09,0.00056986,120]
[321179213,1711945851343,-500.0,0.00056986,120]
[321179214,1711945851352,-652.92,0.00056986,120]
[321179215,1711945851362,-1261.26,0.00056986,120]
[321179216,1711945851371,-817.88,0.00056986,120]
[321179217,1711945851381,-500.0,0.00056986,120]
[321179218,1711945851391,-524.15,0.00056986,120]
[321179219,1711945851401,-500.0,0.00056986,120]
[321179220,1711945851410,-3434.35,0.00056986,120]
[321179221,1711945851420,-711.59,0.00056986,120]
[321179222,1711945851429,-887.67,0.00056986,120]
[321179223,1711945851439,-707.38,0.00056986,120]
[321179224,1711945851449,-151.0,0.00056986,60]
[321179225,1711945851459,-586.89440792,0.00056986,120]
[321179226,1711945851469,-3065.46,0.00056986,120]
[321179227,1711945851479,-936.2,0.00056986,120]
[321179228,1711945851489,-500.0,0.00056986,120]
[321179229,1711945851499,-274.065629,0.00056986,120]
[321179230,1711945851510,-500.0,0.00056986,120]
[321179231,1711945851520,-274.065629,0.00056986,120]
[321179232,1711945851530,-1076.96,0.00056986,120]
[321179233,1711945851541,-752.98,0.00056986,120]
[321179234,1711945851552,-500.0,0.00056986,120]
[321179235,1711945851562,-500.0,0.00056986,120]
[321179236,1711945851572,-2327.12,0.00056986,120]
[321179237,1711945851583,-500.0,0.00056986,120]
[321179238,1711945851593,-1379.9,0.00056986,120]
[321179239,1711945851603,-500.0,0.00056986,120]
[321179240,1711945851613,-500.0,0.00056986,120]
[321179241,1711945851623,-929.99,0.00056986,120]
[321179242,1711945851633,-2759.74,0.00056986,120]
[321179243,1711945851643,-2284.65,0.00056986,120]
[321179244,1711945851653,-787.3,0.00056986,21]
[321179245,1711945851663,-690.79,0.00056986,120]
[321179246,1711945851673,-500.0,0.00056986,120]
[321179247,1711945851685,-840.47,0.00056986,120]
[321179248,1711945851696,-702.95,0.00056986,120]
[321179249,1711945851706,-624.41,0.00056986,120]
[321179250,1711945851720,-1226.31,0.00056986,120]
[321179251,1711945851730,-500.0,0.00056986,120]
[321179252,1711945851740,-1575.71,0.00056986,120]
[321179253,1711945851751,-2216.82,0.00056986,120]
[321179254,1711945851761,-500.0,0.00056986,120]
[321179255,1711945851771,-500.0,0.00056986,120]
[321179256,1711945851781,-643.63452923,0.00056986,120]
[321179257,1711945851793,-151.0,0.00056986,120]
[321179258,1711945851803,-500.0,0.00056986,120]
[321179259,1711945851813,-500.0,0.00056986,120]
[321179260,1711945851823,-580.43,0.00056986,120]
[321179261,1711945851837,-1203.99,0.00056986,120]
[321179262,1711945851847,-500.0,0.00056986,120]
[321179263,1711945851857,-500.0,0.00056986,120]
[321179264,1711945851867,-500.0,0.00056986,120]
[321179265,1711945851877,-655.27,0.00056986,120]
[321179266,1711945851887,-180.98,0.00057009,2]
[321179267,1711945851897,-180.98,0.00057104,2]
[321179268,1711945851906,-180.98,0.00057199,2]
[321179269,1711945851917,-2810.07291805,0.00057258,2]
[321179270,1711945851926,-632.96737132,0.00057259,120]
[321179271,1711945851936,-500.0,0.0005726,120]
[321179272,1711945851946,-500.0,0.0005726,120]
[321179273,1711945851956,-232.116101,0.0005726,30]
[321179274,1711945851966,-232.116101,0.0005726,30]
[321179275,1711945851975,-200.424925,0.0005726,120]
[321179276,1711945851985,-200.424925,0.0005726,120]
[321179277,1711945851995,-500.0,0.0005726,120]
[321179278,1711945852006,-648.17,0.0005726,120]
[321179279,1711945852017,-500.0,0.0005726,120]
[321179280,1711945852027,-1428.09,0.0005726,120]
[321179281,1711945852038,-500.0,0.0005726,120]
[321179282,1711945852049,-652.92,0.0005726,120]
[321179283,1711945852059,-1261.26,0.0005726,120]
[321179284,1711945852069,-817.88,0.0005726,120]
[321179285,1711945852080,-500.0,0.0005726,120]
[321179286,1711945852091,-524.15,0.0005726,120]
[321179287,1711945852101,-500.0,0.0005726,120]
[321179288,1711945852111,-3434.35,0.0005726,120]
[321179289,1711945852122,-711.59,0.0005726,120]
[321179290,1711945852133,-887.67,0.0005726,120]
[321179291,1711945852143,-707.38,0.0005726,120]
[321179292,1711945852153,-151.0,0.0005726,60]
[321179293,1711945852162,-3065.46,0.0005726,120]
[321179294,1711945852173,-936.2,0.0005726,120]
[321179295,1711945852183,-500.0,0.0005726,120]
[321179296,1711945852194,-274.065629,0.0005726,120]
[321179297,1711945852206,-500.0,0.0005726,120]
[321179298,1711945852216,-274.065629,0.0005726,120]
[321179299,1711945852227,-1076.96,0.0005726,120]
[321179300,1711945852238,-752.98,0.0005726,120]
[321179301,1711945852249,-500.0,0.0005726,120]
[321179302,1711945852259,-500.0,0.0005726,120]
[321179303,1711945852270,-2327.12,0.0005726,120]
[321179304,1711945852281,-500.0,0.0005726,120]
[321179305,1711945852292,-1379.9,0.0005726,120]
[321179306,1711945852302,-500.0,0.0005726,120]
[321179307,1711945852312,-500.0,0.0005726,120]
[321179308,1711945852322,-929.99,0.0005726,120]
[321179309,1711945852333,-2759.74,0.0005726,120]
[321179310,1711945852343,-2284.65,0.0005726,120]
[321179311,1711945852353,-787.3,0.0005726,21]
[321179312,1711945852364,-690.79,0.0005726,120]
[321179313,1711945852375,-500.0,0.0005726,120]
[321179314,1711945852386,-840.47,0.0005726,120]
[321179315,1711945852396,-702.95,0.0005726,120]
[321179316,1711945852406,-624.41,0.0005726,120]
[321179317,1711945852417,-1226.31,0.0005726,120]
[321179318,1711945852428,-318.14583508,0.0005726,120]
[321179319,1711945852438,-1575.71,0.0005726,120]
[321179320,1711945852448,-2216.82,0.0005726,120]
[321179321,1711945852458,-500.0,0.0005726,120]
[321179322,1711945852468,-500.0,0.0005726,120]
[321179323,1711945852478,-253.710148,0.0005726,120]
[321179324,1711945852488,-198.67052487,0.0005726,120]
[321179325,1711945852499,-500.0,0.0005726,120]
[321179326,1711945852509,-580.43,0.0005726,120]
[321179327,1711945852520,-1203.99,0.0005726,120]
[321179328,1711945852530,-500.0,0.0005726,120]
[321179329,1711945852541,-500.0,0.0005726,120]
[321179330,1711945852552,-500.0,0.0005726,120]
[321179331,1711945852562,-751.878365,0.0005726,120]
[321179332,1711945852573,-655.27,0.0005726,120]
[321179333,1711945852584,-751.878365,0.0005726,120]
[321179334,1711945852595,-2607.05553109,0.00057262,35]
[321179335,1711945852605,-180.98,0.00057294,2]
[321179336,1711945852616,-217.65892203,0.00057304,120]
[321179337,1711945852626,-4845.04465102,0.00057318,2]
[321179338,1711945852636,-5000.0,0.000575,120]
[321179339,1711945852646,-500.0,0.00057534,120]
[321179340,1711945852656,-500.0,0.00057534,120]
[321179341,1711945852666,-232.116101,0.00057534,30]
[321179342,1711945852676,-232.116101,0.00057534,30]
[321179343,1711945852686,-500.0,0.00057534,120]
[321179344,1711945852697,-648.17,0.00057534,120]
[321179345,1711945852707,-500.0,0.00057534,120]
[321179346,1711945852721,-1428.09,0.00057534,120]
[321179347,1711945852730,-500.0,0.00057534,120]
[321179348,1711945852741,-652.92,0.00057534,120]
[321179349,1711945852751,-1261.26,0.00057534,120]
[321179350,1711945852760,-817.88,0.00057534,120]
[321179351,1711945852770,-500.0,0.00057534,120]
[321179352,1711945852780,-524.15,0.00057534,120]
[321179353,1711945852791,-500.0,0.00057534,120]
[321179354,1711945852802,-3434.35,0.00057534,120]
[321179355,1711945852812,-711.59,0.00057534,120]
[321179356,1711945852822,-887.67,0.00057534,120]
[321179357,1711945852831,-707.38,0.00057534,120]
[321179358,1711945852841,-3065.46,0.00057534,120]
[321179359,1711945852851,-936.2,0.00057534,120]
[321179360,1711945852862,-500.0,0.00057534,120]
[321179361,1711945852873,-500.0,0.00057534,120]
[321179362,1711945852883,-1076.96,0.00057534,120]
[321179363,1711945852893,-752.98,0.00057534,120]
[321179364,1711945852903,-500.0,0.00057534,120]
[321179365,1711945852914,-625.23979562,0.00057534,120]
[321179366,1711945852924,-2327.12,0.00057534,120]
[321179367,1711945852934,-500.0,0.00057534,120]
[321179368,1711945852945,-1379.9,0.00057534,120]
[321179369,1711945852954,-500.0,0.00057534,120]
[321179370,1711945852964,-500.0,0.00057534,120]
[321179371,1711945852975,-2759.74,0.00057534,120]
[321179372,1711945852986,-929.99,0.00057534,120]
[321179373,1711945852997,-2284.65,0.00057534,120]
[321179374,1711945853008,-787.3,0.00057534,21]
[321179375,1711945853018,-690.79,0.00057534,120]
[321179376,1711945853029,-500.0,0.00057534,120]
[321179377,1711945853039,-840.47,0.00057534,120]
[321179378,1711945853050,-702.95,0.00057534,120]
[321179379,1711945853059,-624.41,0.00057534,120]
[321179380,1711945853070,-1226.31,0.00057534,120]
[321179381,1711945853080,-1575.71,0.00057534,120]
[321179382,1711945853090,-2216.82,0.00057534,120]
[321179383,1711945853100,-500.0,0.00057534,120]
[321179384,1711945853110,-500.0,0.00057534,120]
[321179385,1711945853121,-500.0,0.00057534,120]
[321179386,1711945853131,-580.43,0.00057534,120]
[321179387,1711945853142,-1203.99,0.00057534,120]
[321179388,1711945853153,-500.0,0.00057534,120]
[321179389,1711945853165,-500.0,0.00057534,120]
[321179390,1711945853175,-337.02397952,0.00057534,120]
[321179391,1711945853186,-751.878365,0.00057534,120]
[321179392,1711945853198,-655.27,0.00057534,120]
[321179393,1711945853207,-751.878365,0.00057534,120]
[321179394,1711945853218,-153.84861958,0.00057708,2]
[321179395,1711945853228,-387.41827494,0.00057781,4]
[321179396,1711945853237,-3555.45833327,0.00057781,4]
[321179397,1711945853247,-500.0,0.00057808,120]
[321179398,1711945853256,-500.0,0.00057808,120]
[321179399,1711945853265,-200.424925,0.00057808,120]
[321179400,1711945853275,-200.424925,0.00057808,120]
[321179401,1711945853285,-500.0,0.00057808,120]
[321179402,1711945853294,-648.17,0.00057808,120]
[321179403,1711945853304,-500.0,0.00057808,120]
[321179404,1711945853313,-1428.09,0.00057808,120]
[321179405,1711945853323,-500.0,0.00057808,120]
[321179406,1711945853332,-652.92,0.00057808,120]
[321179407,1711945853342,-1261.26,0.00057808,120]
[321179408,1711945853351,-817.88,0.00057808,120]
[321179409,1711945853361,-500.0,0.00057808,120]
[321179410,1711945853371,-524.15,0.00057808,120]
[321179411,1711945853381,-500.0,0.00057808,120]
[321179412,1711945853390,-3434.35,0.00057808,120]
[321179413,1711945853400,-711.59,0.00057808,120]
[321179414,1711945853410,-887.67,0.00057808,120]
[321179415,1711945853421,-707.38,0.00057808,120]
[321179416,1711945853430,-151.0,0.00057808,60]
[321179417,1711945853439,-3065.46,0.00057808,120]
[321179418,1711945853449,-936.2,0.00057808,120]
[321179419,1711945853459,-500.0,0.00057808,120]
[321179420,1711945853468,-274.065629,0.00057808,120]
[321179421,1711945853478,-500.0,0.00057808,120]
[321179422,1711945853487,-274.065629,0.00057808,120]
[321179423,1711945853496,-1076.96,0.00057808,120]
[321179424,1711945853505,-752.98,0.00057808,120]
[321179425,1711945853514,-500.0,0.00057808,120]
[321179426,1711945853524,-2327.12,0.00057808,120]
[321179427,1711945853533,-500.0,0.00057808,120]
[321179428,1711945853542,-1379.9,0.00057808,120]
[321179429,1711945853551,-500.0,0.00057808,120]
[321179430,1711945853560,-500.0,0.00057808,120]
[321179431,1711945853569,-2759.74,0.00057808,120]
[321179432,1711945853579,-929.99,0.00057808,120]
[321179433,1711945853588,-2284.65,0.00057808,120]
[321179434,1711945853597,-787.3,0.00057808,21]
[321179435,1711945853606,-690.79,0.00057808,120]
[321179436,1711945853615,-500.0,0.00057808,120]
[321179437,1711945853625,-840.47,0.00057808,120]
[321179438,1711945853634,-702.95,0.00057808,120]
[321179439,1711945853643,-624.41,0.00057808,120]
[321179440,1711945853652,-1226.31,0.00057808,120]
[321179441,1711945853661,-1575.71,0.00057808,120]
[321179442,1711945853672,-2216.82,0.00057808,120]
[321179443,1711945853682,-500.0,0.00057808,120]
[321179444,1711945853691,-551.28680713,0.00057808,120]
[321179445,1711945853700,-500.0,0.00057808,120]
[321179446,1711945853712,-580.43,0.00057808,120]
[321179447,1711945853721,-500.0,0.00057808,120]
[321179448,1711945853731,-1203.99,0.00057808,120]
[321179449,1711945853741,-500.0,0.00057808,120]
[321179450,1711945853751,-655.27,0.00057808,120]
[321179451,1711945853760,-473.0,0.000579,37]
[321179452,1711945853769,-5231.0038226,0.00057906,2]
[321179453,1711945853779,-232.116101,0.00057912,30]
[321179454,1711945853789,-232.116101,0.00057912,30]
[321179455,1711945853798,-840.0,0.00057945,120]
[321179456,1711945853808,-193.09195404,0.00057991,20]
[321179457,1711945853818,-642.97121304,0.00057997,7]
[321179458,1711945853827,-155.0,0.00057997,4]
[321179459,1711945853837,-751.878365,0.00057997,120]
[321179460,1711945853846,-751.878361,0.00057997,120]
[321179461,1711945853855,-263.71636568,0.00057998,2]
[321179462,1711945853865,-3082.58239207,0.00058,14]
[321179463,1711945853874,-500.0,0.00058082,120]
[321179464,1711945853883,-500.0,0.00058082,120]
[321179465,1711945853892,-402.50787091,0.00058082,120]
[321179466,1711945853901,-648.17,0.00058082,120]
[321179467,1711945853910,-500.0,0.00058082,120]
[321179468,1711945853920,-1428.09,0.00058082,120]
[321179469,1711945853929,-500.0,0.00058082,120]
[321179470,1711945853939,-652.92,0.00058082,120]
[321179471,1711945853948,-1261.26,0.00058082,120]
[321179472,1711945853957,-817.88,0.00058082,120]
[321179473,1711945853967,-500.0,0.00058082,120]
[321179474,1711945853977,-524.15,0.00058082,120]
[321179475,1711945853986,-500.0,0.00058082,120]
[321179476,1711945853996,-3434.35,0.00058082,120]
[321179477,1711945854005,-711.59,0.00058082,120]
[321179478,1711945854015,-887.67,0.00058082,120]
[321179479,1711945854025,-707.38,0.00058082,120]
[321179480,1711945854034,-3065.46,0.00058082,120]
[321179481,1711945854043,-936.2,0.00058082,120]
[321179482,1711945854052,-500.0,0.00058082,120]
[321179483,1711945854061,-274.065629,0.00058082,120]
[321179484,1711945854070,-500.0,0.00058082,120]
[321179485,1711945854079,-274.065629,0.00058082,120]
[321179486,1711945854088,-1076.96,0.00058082,120]
[321179487,1711945854097,-752.98,0.00058082,120]
[321179488,1711945854106,-500.0,0.00058082,120]
[321179489,1711945854116,-2327.12,0.00058082,120]
[321179490,1711945854126,-500.0,0.00058082,120]
[321179491,1711945854135,-1379.9,0.00058082,120]
[321179492,1711945854144,-175.85772502,0.00058082,120]
[321179493,1711945854153,-500.0,0.00058082,120]
[321179494,1711945854162,-2759.74,0.00058082,120]